fUSD/lending_fUSD_20240706
["ID","MTS","AMOUNT","RATE_DAILY","PERIOD"]
[331357984,1720269282580,-643.04,0.00032126,30]
[331357985,1720269282624,-500.0,0.00032126,30]
[331357986,1720269282668,-500.0,0.00032126,30]
[331357987,1720269282711,-500.0,0.00032126,30]
[331357988,1720269282753,-643.04,0.00032126,30]
[331357989,1720269282797,-4730.98,0.00032126,30]
[331357990,1720269282842,-500.0,0.00032126,30]
[331357991,1720269282893,-1697.51,0.00032126,30]
[331357992,1720269283000,-500.0,0.00032126,30]
[331357993,1720269283046,-500.0,0.00032126,30]
[331357994,1720269283094,-643.04,0.00032126,30]
[331357995,1720269283141,-500.0,0.00032126,30]
[331357996,1720269283187,-500.0,0.00032126,30]
[331357997,1720269283232,-643.04,0.00032126,30]
[331357998,1720269283281,-4730.98,0.00032126,30]
[331357999,1720269283501,-500.0,0.00032126,30]
[331358000,1720269283550,-1697.51,0.00032126,30]
[331358001,1720269283597,-500.0,0.00032126,30]
[331358002,1720269283646,-500.0,0.00032126,30]
[331358003,1720269283694,-500.0,0.00032126,30]
[331358004,1720269283744,-643.04,0.00032126,30]
[331358005,1720269283791,-500.0,0.00032126,30]
[331358006,1720269283840,-500.0,0.00032126,30]
[331358007,1720269283890,-501.69249594,0.00032126,30]
[331358008,1720269283943,-500.0,0.00032126,30]
[331358009,1720269283996,-643.04,0.00032126,30]
[331358010,1720269284047,-421.74623845,0.00032126,30]
[331358011,1720269284097,-500.0,0.00032126,30]
[331358012,1720269284148,-4730.98,0.00032126,30]
[331358013,1720269284198,-500.0,0.00032126,30]
[331358014,1720269284250,-519.43,0.00032126,30]
[331358015,1720269284300,-500.0,0.00032126,30]
[331358016,1720269284351,-1697.51,0.00032126,30]
[331358017,1720269284400,-643.05373882,0.00032126,30]
[331358018,1720269284451,-500.0,0.00032126,30]
[331358019,1720269284507,-500.0,0.00032126,30]
[331358020,1720269284554,-500.0,0.00032126,30]
[331358021,1720269284603,-500.0,0.00032126,30]
[331358022,1720269284651,-500.0,0.00032126,30]
[331358023,1720269284699,-500.0,0.00032126,30]
[331358024,1720269284745,-500.0,0.00032126,30]
[331358025,1720269284793,-667.3,0.00032126,30]
[331358026,1720269284839,-1697.51,0.00032126,30]
[331358027,1720269284892,-519.43,0.00032126,30]
[331358028,1720269284939,-500.0,0.00032126,30]
[331358029,1720269284986,-500.0,0.00032126,30]
[331358030,1720269285034,-4730.98,0.00032126,30]
[331358031,1720269285080,-1334.58,0.00032126,30]
[331358032,1720269285127,-500.0,0.00032126,30]
[331358033,1720269285173,-667.3,0.00032126,30]
[331358034,1720269285220,-500.0,0.00032126,30]
[331358035,1720269285265,-500.0,0.00032126,30]
[331358036,1720269285315,-1697.54184818,0.00032126,30]
[331358037,1720269285361,-454.57126905,0.00032126,30]
[331358038,1720269285410,-500.0,0.00032126,30]
[331358039,1720269285459,-667.3,0.00032126,30]
[331358040,1720269285511,-519.43,0.00032126,30]
[331358041,1720269285559,-500.0,0.00032126,30]
[331358042,1720269285605,-500.0,0.00032126,30]
[331358043,1720269285652,-667.3,0.00032126,30]
[331358044,1720269285698,-500.0,0.00032126,30]
[331358045,1720269285743,-229.60956106,0.00032126,30]
[331358046,1720269285789,-500.0,0.00032126,30]
[331358047,1720269285834,-500.0,0.00032126,30]
[331358048,1720269285885,-667.3,0.00032126,30]
[331358049,1720269285932,-500.0,0.00032126,30]
[331358050,1720269285981,-326.36582946,0.00032126,30]
[331358051,1720269286027,-500.0,0.00032126,30]
[331358052,1720269286072,-667.3,0.00032126,30]
[331358053,1720269286118,-500.0,0.00032126,30]
[331358054,1720269286162,-4730.98,0.00032126,30]
[331358055,1720269286208,-1334.58,0.00032126,30]
[331358056,1720269286251,-500.0,0.00032126,30]
[331358057,1720269286295,-519.94421635,0.00032126,30]
[331358058,1720269286338,-500.0,0.00032126,30]
[331358059,1720269286382,-667.3,0.00032126,30]
[331358060,1720269286426,-519.43,0.00032126,30]
[331358061,1720269286473,-502.4715828,0.00032126,30]
[331358062,1720269286522,-500.0,0.00032126,30]
[331358063,1720269286567,-500.0,0.00032126,30]
[331358064,1720269286613,-667.3,0.00032126,30]
[331358065,1720269286658,-4730.98,0.00032126,30]
[331358066,1720269286704,-1186.98,0.00032126,30]
[331358067,1720269286751,-1334.58,0.00032126,30]
[331358068,1720269286797,-500.0,0.00032126,30]
[331358069,1720269286842,-500.0,0.00032126,30]
[331358070,1720269286890,-667.3,0.00032126,30]
[331358071,1720269286938,-1186.98,0.00032126,30]
[331358072,1720269286985,-500.0,0.00032126,30]
[331358073,1720269287029,-1186.98,0.00032126,30]
[331358074,1720269287072,-378.13802155,0.00032126,30]
[331358075,1720269287117,-667.3,0.00032126,30]
[331358076,1720269287159,-519.43,0.00032126,30]
[331358077,1720269287202,-500.0,0.00032126,30]
[331358078,1720269287247,-4730.98,0.00032126,30]
[331358079,1720269287291,-667.3,0.00032126,30]
[331358080,1720269287336,-1186.98,0.00032126,30]
[331358081,1720269287380,-1334.58,0.00032126,30]
[331358082,1720269287423,-500.0,0.00032126,30]
[331358083,1720269287470,-500.0,0.00032126,30]
[331358084,1720269287518,-667.3,0.00032126,30]
[331358085,1720269287561,-519.43,0.00032126,30]
[331358086,1720269287608,-500.0,0.00032126,30]
[331358087,1720269287654,-667.3,0.00032126,30]
[331358088,1720269287698,-4730.98,0.00032126,30]
[331358089,1720269287744,-1334.58,0.00032126,30]
[331358090,1720269287790,-500.0,0.00032126,30]
[331358091,1720269287836,-1186.98,0.00032126,30]
[331358092,1720269287888,-500.0,0.00032126,30]
[331358093,1720269287938,-519.43,0.00032126,30]
[331358094,1720269287986,-667.3,0.00032126,30]
[331358095,1720269288033,-500.0,0.00032126,30]
[331358096,1720269288078,-500.0,0.00032126,30]
[331358097,1720269288123,-500.0,0.00032126,30]
[331358098,1720269288169,-1186.98,0.00032126,30]
[331358099,1720269288214,-4730.98,0.00032126,30]
[331358100,1720269288258,-625.70945172,0.00032126,30]
[331358101,1720269288303,-500.0,0.00032126,30]
[331358102,1720269288350,-667.3,0.00032126,30]
[331358103,1720269288612,-1186.98,0.00032126,30]
[331358104,1720269288660,-500.0,0.00032126,30]
[331358105,1720269288710,-1186.98,0.00032126,30]
[331358106,1720269288759,-667.3,0.00032126,30]
[331358107,1720269288807,-500.0,0.00032126,30]
[331358108,1720269288858,-667.3,0.00032126,30]
[331358109,1720269288906,-519.43,0.00032126,30]
[331358110,1720269288960,-500.0,0.00032126,30]
[331358111,1720269289009,-667.3,0.00032126,30]
[331358112,1720269289055,-500.0,0.00032126,30]
[331358113,1720269289102,-4730.98,0.00032126,30]
[331358114,1720269289148,-500.0,0.00032126,30]
[331358115,1720269289196,-500.0,0.00032126,30]
[331358116,1720269289244,-519.43,0.00032126,30]
[331358117,1720269289293,-667.3,0.00032126,30]
[331358118,1720269289343,-500.0,0.00032126,30]
[331358119,1720269289393,-418.64468174,0.00032126,30]
[331358120,1720269289440,-1340.06,0.00032126,30]
[331358121,1720269289489,-4730.98,0.00032126,30]
[331358122,1720269289538,-500.0,0.00032126,30]
[331358123,1720269289589,-667.3,0.00032126,30]
[331358124,1720269289636,-500.0,0.00032126,30]
[331358125,1720269289683,-519.43,0.00032126,30]
[331358126,1720269289734,-1334.58,0.00032126,30]
[331358127,1720269289785,-667.3,0.00032126,30]
[331358128,1720269289845,-500.0,0.00032126,30]
[331358129,1720269289903,-1340.06,0.00032126,30]
[331358130,1720269289955,-500.0,0.00032126,30]
[331358131,1720269290009,-667.3,0.00032126,30]
[331358132,1720269290058,-135.23320673,0.00032126,30]
[331358133,1720269293621,-316.714192,0.00012848,2]
[331358134,1720269293631,-2244.84,0.00012864,2]
[331358135,1720269293640,-1112.72698692,0.000129,2]
[331358136,1720269293651,-397.08384421,0.000129,2]
[331358137,1720269293663,-342.60916887,0.000129,2]
[331358138,1720269293672,-200.0,0.00012952,2]
[331358139,1720269293682,-1000.0,0.00012953,2]
[331358140,1720269293691,-35.94839928,0.00013335,2]
[331358141,1720269293702,-214.05160072,0.00013335,2]
[331358142,1720269293712,-499.99,0.00013335,2]
[331358143,1720269293721,-167.91,0.00013435,2]
[331358144,1720269293731,-1836.58,0.0001344,2]
[331358145,1720269293741,-150.99,0.0001344,2]
[331358146,1720269293752,-63.8110741,0.00013448,2]
[331358147,1720269293764,-8660.2389259,0.00013448,2]
[331358148,1720269293774,-317.58,0.00013448,2]
[331358149,1720269293785,-150.0,0.00013551,2]
[331358150,1720269293795,-167.91,0.00013552,2]
[331358151,1720269293805,-167.91,0.00013669,2]
[331358152,1720269293815,-166.14,0.00013699,2]
[331358153,1720269293825,-167.91,0.00013785,2]
[331358154,1720269293835,-515.89,0.00013899,2]
[331358155,1720269293846,-2136.1227,0.000139,2]
[331358156,1720269293858,-167.91,0.00013902,2]
[331358157,1720269293868,-1083989.80502104,0.00014,2]
[331358158,1720269293880,-61428.00053845,0.00014,2]
[331358159,1720269293894,-2025.59405055,0.00014,2]
[331358160,1720269293906,-2796.90567683,0.00014,2]
[331358161,1720269293919,-1935.23226309,0.00014,2]
[331358162,1720269293933,-784.98522457,0.00014,2]
[331358163,1720269293946,-374.10436896,0.00014,2]
[331358164,1720269293958,-720.0,0.00014,2]
[331358165,1720269293970,-1152.81088996,0.00014,2]
[331358166,1720269294377,-31468.77082061,0.00014,2]
[331358167,1720269294389,-6900.0,0.00014,2]
[331358168,1720269294668,-670.0,0.00014,2]
[331358169,1720269294680,-576.94,0.00014,2]
[331358170,1720269294692,-526.41,0.00014,2]
[331358171,1720269294773,-1014.71,0.00014,2]
[331358172,1720269294784,-272.12555121,0.00014,2]
[331358173,1720269294796,-1421.277422,0.00014,2]
[331358174,1720269294808,-590.86490251,0.00014,2]
[331358175,1720269294820,-2853.17794119,0.00014,2]
[331358176,1720269294833,-2162.92399543,0.00014,2]
[331358177,1720269294849,-509.91418348,0.00014,2]
[331358178,1720269296243,-313.3815487,0.00014,2]
[331358179,1720269296253,-2046.1834453,0.00014,2]
[331358180,1720269296447,-907.63647684,0.00014,2]
[331358181,1720269296459,-1084.74979351,0.00014,2]
[331358182,1720269296472,-577.5,0.00014,2]
[331358183,1720269296484,-789.425,0.00014,2]
[331358184,1720269296496,-594.81,0.00014,2]
[331358185,1720269296508,-2518.74915113,0.00014,2]
[331358186,1720269296520,-322.8916,0.00014,2]
[331358187,1720269305013,500.0,0.00030136,30]
[331358188,1720269305101,500.0,0.00030136,30]
[331358189,1720269305196,500.0,0.00030136,30]
[331358190,1720269305264,500.0,0.00030136,30]
[331358191,1720269305384,500.0,0.00030136,30]
[331358192,1720269305493,500.0,0.00030136,30]
[331358193,1720269305563,500.0,0.00030136,30]
[331358194,1720269305634,500.0,0.00030136,30]
[331358195,1720269305723,500.0,0.00030136,30]
[331358196,1720269305808,500.0,0.00030136,30]
[331358197,1720269305877,495.55859441,0.00030136,30]
[331358199,1720269310433,381.42050941,0.0003,30]
[331358200,1720269311457,381.42050941,0.0003,30]
[331358201,1720269320898,152.84332,0.0001272,2]
[331358202,1720269321868,381.42050941,0.0003,30]
[331358203,1720269333158,381.42050941,0.0003,30]
[331358204,1720269334075,4197.15668,0.000118,2]
[331358206,1720269337519,4258.6062,6.94e-05,2]
[331358208,1720269349981,500.0,0.00032126,60]
[331358209,1720269350408,500.0,0.00032126,60]
[331358210,1720269350835,500.0,0.00032126,60]
[331358211,1720269351268,500.0,0.00032126,60]
[331358212,1720269351737,500.0,0.00032126,60]
[331358213,1720269368034,533.43075893,8.412e-05,2]
[331358214,1720269372895,570.1631298,8.412e-05,2]
[331358215,1720269375610,668.86580301,0.00025,30]
[331358216,1720269382124,381.42050941,0.0003,30]
[331358217,1720269383671,301.10547059,8.412e-05,2]
[331358218,1720269383718,247.0938158,8.412e-05,2]
[331358219,1720269384206,579.18613512,8.412e-05,2]
[331358220,1720269385222,1050.0,8.412e-05,2]
[331358221,1720269390173,401.57927817,8.412e-05,2]
[331358222,1720269390327,18251.14135064,8.412e-05,2]
[331358223,1720269393433,525.36408411,8.412e-05,2]
[331358224,1720269397955,450.75132957,8.412e-05,2]
[331358225,1720269398360,314.4466896,8.412e-05,2]
[331358226,1720269398757,155.0,8.412e-05,2]
[331358227,1720269412693,209.96997035,0.0001,2]
[331358228,1720269443676,500.0,0.00030136,30]
[331358229,1720269443973,500.0,0.00030136,30]
[331358230,1720269444192,500.0,0.00030136,30]
[331358232,1720269448932,500.0,0.00030136,30]
[331358233,1720269449204,500.0,0.00030136,30]
[331358234,1720269449691,536.05466172,0.00030136,30]
[331358235,1720269455230,668.86580301,0.00025,30]
[331358237,1720269484589,500.0,0.00030136,30]
[331358238,1720269484800,500.0,0.00030136,30]
[331358239,1720269485061,500.0,0.00030136,30]
[331358240,1720269485345,500.0,0.00030136,30]
[331358241,1720269486069,438.55112598,0.00030136,30]
[331358244,1720269500562,1000.0,0.00030137,30]
[331358245,1720269510014,-300.0,0.00011799,2]
[331358246,1720269510137,-24915.30046589,0.000118,2]
[331358247,1720269510186,-166.48,0.00012535,2]
[331358248,1720269510239,-177.76,0.00012552,2]
[331358249,1720269510290,-250.0,0.00012577,2]
[331358250,1720269510341,-200.0,0.00012599,2]
[331358251,1720269510390,-500.0,0.00012822,2]
[331358252,1720269510438,-500.0,0.0001298,2]
[331358253,1720269510488,-152.37,0.00013014,2]
[331358254,1720269510540,-1453.04,0.00013014,2]
[331358255,1720269510592,-152.37,0.00013054,2]
[331358256,1720269510642,-499.99,0.00013054,2]
[331358257,1720269510690,-150.99,0.00013054,2]
[331358258,1720269510738,-3247.61,0.00013089,2]
[331358259,1720269510788,-152.37,0.00013094,2]
[331358260,1720269510839,-152.37,0.00013134,2]
[331358261,1720269510888,-152.37,0.00013174,2]
[331358262,1720269510941,-152.37,0.00013214,2]
[331358263,1720269510995,-152.37,0.00013253,2]
[331358264,1720269511049,-152.37,0.00013293,2]
[331358265,1720269511098,-3290.25,0.000133,2]
[331358266,1720269511144,-606.0,0.00013303,2]
[331358267,1720269511196,-152.37,0.00013333,2]
[331358268,1720269511244,-152.37,0.00013373,2]
[331358269,1720269511290,-250.0,0.00013522,2]
[331358270,1720269511336,-605.86,0.00013699,2]
[331358271,1720269511383,-259.11,0.00013699,2]
[331358272,1720269511425,-400.0,0.00013885,2]
[331358273,1720269511468,-500.0,0.00013888,2]
[331358274,1720269511510,-219.86,0.0001389,3]
[331358275,1720269511553,-2324.21109593,0.000139,2]
[331358276,1720269511597,-189.40844575,0.000139,2]
[331358277,1720269511639,-25000.0,0.000139,2]
[331358278,1720269511683,-164.37168205,0.000139,2]
[331358279,1720269511728,-154.11166156,0.00013999,2]
[331358280,1720269511774,-614.0,0.00014,2]
[331358281,1720269511825,-9931537.94664882,0.00014,2]
[331358282,1720269521787,1186.01166615,0.00030136,60]
[331358283,1720269541282,1000.0,0.00030137,30]
[331358284,1720269579622,668.86580301,0.00025,30]
[331358285,1720269609648,668.86580301,0.00025,30]
[331358286,1720269624138,544.88644202,0.0003,30]
[331358287,1720269636667,243.43717966,0.00030136,30]
[331358288,1720269688843,155.36050558,0.00030136,120]
[331358289,1720269727796,1186.01166615,0.00030136,60]
[331358290,1720269733640,668.86580301,0.00025,30]
[331358291,1720269733854,-711.925099,0.000305,30]
[331358292,1720269733906,-889.906374,0.000308,30]
[331358293,1720269733955,-389.07849929,0.00031,30]
[331358294,1720269734004,-420523.39960055,0.00031,30]
[331358295,1720269734057,-1245.868924,0.000312,30]
[331358296,1720269734108,-1423.850199,0.000315,30]
[331358297,1720269734159,-1000.0,0.00032,120]
[331358298,1720269734210,-17406.36,0.00032,30]
[331358299,1720269734260,-500.0,0.00032,120]
[331358300,1720269734755,-5000.0,0.0003215,30]
[331358301,1720269734805,-1606.72846063,0.0003215,30]
[331358302,1720269734858,-1000.0,0.000322,30]
[331358303,1720269734908,-1423.850199,0.000322,30]
[331358304,1720269734963,-237.23,0.000322,31]
[331358305,1720269735017,-1208.0,0.00032283,30]
[331358306,1720269735069,-5470.3564847,0.00032348,30]
[331358307,1720269735118,-10000.0,0.00032348,30]
[331358308,1720269735168,-10000.0,0.00032348,30]
[331358309,1720269735216,-10000.0,0.00032348,30]
[331358310,1720269735266,-150.0,0.0003252,120]
[331358311,1720269735315,-500.0,0.00032876,120]
[331358312,1720269735363,-500.0,0.00032876,120]
[331358313,1720269735413,-500.0,0.00032876,120]
[331358314,1720269735462,-261.73381522,0.00032876,120]
[331358315,1720269735510,-1000.0,0.00033,120]
[331358316,1720269735556,-900.0,0.00033,34]
[331358317,1720269735606,-1250.01,0.00033151,120]
[331358318,1720269735655,-1000.0,0.000335,30]
[331358319,1720269735704,-1000.0,0.000336,30]
[331358320,1720269735753,-1000.0,0.00034,120]
[331358321,1720269735799,-1000.0,0.00034,120]
[331358322,1720269735847,-500.0,0.00034334,30]
[331358323,1720269735895,-500.0,0.00034334,30]
[331358324,1720269735952,-500.0,0.00034334,30]
[331358325,1720269736004,-500.0,0.00034334,30]
[331358326,1720269736062,-500.0,0.00034334,30]
[331358327,1720269736113,-500.0,0.00034334,30]
[331358328,1720269736165,-500.0,0.00034334,30]
[331358329,1720269736217,-500.0,0.00034334,30]
[331358330,1720269736267,-500.0,0.00034334,30]
[331358331,1720269736316,-500.0,0.00034334,30]
[331358332,1720269736363,-500.0,0.00034334,30]
[331358333,1720269736409,-500.0,0.00034334,30]
[331358334,1720269736457,-500.0,0.00034334,30]
[331358335,1720269736502,-609.0,0.00034334,30]
[331358336,1720269736548,-500.0,0.00034334,30]
[331358337,1720269736597,-1000.0,0.00035,120]
[331358338,1720269736649,-150.0,0.00035,120]
[331358339,1720269736699,-1918.72371687,0.00035423,40]
[331358340,1720269736748,-320.40718979,0.00035423,40]
[331358341,1720269736797,-234.20004703,0.00035423,40]
[331358342,1720269736846,-1000.0,0.00035616,30]
[331358343,1720269736896,-240.7398494,0.00035686,120]
[331358344,1720269736946,-1000.0,0.00035766,30]
[331358345,1720269736998,-1000.0,0.00035915,30]
[331358346,1720269737055,-1000.0,0.00036,120]
[331358347,1720269737104,-1000.0,0.00036065,30]
[331358348,1720269737153,-1000.0,0.00036214,30]
[331358349,1720269737200,-1000.0,0.00036364,30]
[331358350,1720269737246,-1000.0,0.00036513,30]
[331358351,1720269737292,-1000.0,0.00036663,30]
[331358352,1720269737337,-1000.0,0.00036812,30]
[331358353,1720269737383,-2499.23043663,0.0003688,30]
[331358354,1720269737432,-1000.0,0.00036961,30]
[331358355,1720269737480,-1000.0,0.00037111,30]
[331358356,1720269737531,-1000.0,0.0003726,30]
[331358357,1720269737583,-1000.0,0.0003741,30]
[331358358,1720269737638,-1000.0,0.00037559,30]
[331358359,1720269737690,-1000.0,0.00037709,30]
[331358360,1720269737741,-1000.0,0.00037858,30]
[331358361,1720269737794,-1000.0,0.00038,120]
[331358362,1720269737844,-560.08333564,0.00038,120]
[331358363,1720269737894,-1000.0,0.00038007,30]
[331358364,1720269737946,-1000.0,0.00038157,30]
[331358365,1720269737992,-1000.0,0.00038306,30]
[331358366,1720269738042,-748.62,0.00038356,30]
[331358367,1720269738091,-748.62,0.00038356,30]
[331358368,1720269738137,-748.62,0.00038356,30]
[331358369,1720269738185,-748.62,0.00038356,30]
[331358370,1720269738237,-748.62,0.00038356,30]
[331358371,1720269738287,-748.62,0.00038356,30]
[331358372,1720269738338,-748.62,0.00038356,30]
[331358373,1720269738388,-748.62,0.00038356,30]
[331358374,1720269738437,-748.62,0.00038356,30]
[331358375,1720269738485,-748.62,0.00038356,30]
[331358376,1720269738536,-748.62,0.00038356,30]
[331358377,1720269738587,-748.62,0.00038356,30]
[331358378,1720269738638,-748.62,0.00038356,30]
[331358379,1720269739463,-748.62,0.00038356,30]
[331358380,1720269739516,-748.62,0.00038356,30]
[331358381,1720269739567,-748.62,0.00038356,30]
[331358382,1720269739616,-748.62,0.00038356,30]
[331358383,1720269739664,-748.62,0.00038356,30]
[331358384,1720269739714,-748.62,0.00038356,30]
[331358385,1720269739762,-748.62,0.00038356,30]
[331358386,1720269739819,-748.62,0.00038356,30]
[331358387,1720269739869,-748.62,0.00038356,30]
[331358388,1720269739920,-748.62,0.00038356,30]
[331358389,1720269739972,-748.78576758,0.00038356,30]
[331358390,1720269740025,-1000.0,0.00038456,30]
[331358391,1720269740079,-1000.0,0.00038605,30]
[331358392,1720269740133,-1000.0,0.00038755,30]
[331358393,1720269740405,-1000.0,0.00038904,30]
[331358394,1720269740455,-1000.0,0.00039054,30]
[331358395,1720269740509,-1000.0,0.00039203,30]
[331358396,1720269740559,-1000.0,0.00039352,30]
[331358397,1720269740611,-1000.0,0.00039502,30]
[331358398,1720269740659,-1000.0,0.00039651,30]
[331358399,1720269740708,-1000.0,0.00039801,30]
[331358400,1720269740759,-1000.0,0.0003995,30]
[331358401,1720269740811,-50000.0,0.0004,30]
[331358402,1720269740868,-50000.0,0.0004,40]
[331358403,1720269740925,-1000.0,0.0004,120]
[331358404,1720269740978,-314.0,0.0004,120]
[331358405,1720269741032,-151.0,0.0004,120]
[331358406,1720269741082,-167.5,0.0004,120]
[331358407,1720269741135,-200.05062301,0.0004,30]
[331358408,1720269741188,-314.89777558,0.0004,30]
[331358409,1720269741240,-1873.227079,0.0004,30]
[331358410,1720269741292,-1000.0,0.0004,60]
[331358411,1720269741340,-200.0,0.0004,120]
[331358412,1720269741386,-345.09,0.0004,120]
[331358413,1720269741433,-185.32722779,0.00040034,30]
[331358414,1720269741480,-1000.0,0.000401,30]
[331358415,1720269741528,-158.80254269,0.00040143,30]
[331358416,1720269741576,-202.4229253,0.00040155,30]
[331358417,1720269741628,-150.0,0.00040159,30]
[331358418,1720269741679,-456.76558613,0.00040191,30]
[331358419,1720269741730,-201.93810335,0.00040193,30]
[331358420,1720269741784,-456.76558613,0.00040214,30]
[331358421,1720269741835,-185.32722779,0.00040214,30]
[331358422,1720269741885,-150.0,0.00040247,30]
[331358423,1720269741935,-1000.0,0.00040249,30]
[331358424,1720269741986,-501.97866557,0.0004025,120]
[331358425,1720269742039,-541.81988762,0.00040335,30]
[331358426,1720269742091,-1000.0,0.00040399,30]
[331358427,1720269742141,-635.19279279,0.00040493,30]
[331358428,1720269742192,-166.66666666,0.00040521,30]
[331358429,1720269742240,-1000.0,0.00040548,30]
[331358430,1720269742290,-166.6666667,0.00040559,30]
[331358431,1720269742342,-715.93994448,0.00040572,30]
[331358432,1720269742390,-635.19279279,0.00040611,30]
[331358433,1720269742438,-1321.03647936,0.00040618,30]
[331358434,1720269742487,-1167.60382416,0.00040633,30]
[331358435,1720269742533,-152.27282932,0.00040644,30]
[331358436,1720269742584,-715.93994448,0.00040665,30]
[331358437,1720269742640,-1000.0,0.00040697,30]
[331358438,1720269742692,-2064.0,0.000407,81]
[331358439,1720269742743,-167.5,0.00040712,120]
[331358440,1720269742792,-233.82990408,0.00040786,30]
[331358441,1720269742843,-1321.03647936,0.00040788,30]
[331358442,1720269742894,-2224.765938,0.000408,30]
[331358443,1720269742945,-355.962549,0.000408,30]
[331358444,1720269742998,-233.82990408,0.00040815,30]
[331358445,1720269743052,-1000.0,0.00040847,30]
[331358446,1720269743103,-159.79486532,0.00040869,30]
[331358447,1720269743149,-161.75331797,0.00040919,30]
[331358448,1720269743197,-156.41545066,0.0004092,30]
[331358449,1720269743244,-166.3237039,0.00040923,30]
[331358450,1720269743292,-2415.25548183,0.00040992,30]
[331358451,1720269743343,-364.49717125,0.00040993,30]
[331358452,1720269743392,-1000.0,0.00040996,30]
[331358453,1720269743446,-50000.0,0.00041,31]
[331358454,1720269743500,-50000.0,0.00041,41]
[331358455,1720269743552,-4216.43564671,0.00041,30]
[331358456,1720269743616,-489.29180075,0.00041,120]
[331358457,1720269743668,-250.21251078,0.00041,30]
[331358458,1720269743721,-166.66666666,0.00041033,30]
[331358459,1720269743779,-152.0,0.00041041,31]
[331358460,1720269743832,-500.0,0.00041095,30]
[331358461,1720269743881,-504.49774621,0.00041095,30]
[331358462,1720269743932,-515.00842759,0.00041095,30]
[331358463,1720269743981,-500.0,0.00041095,90]
[331358464,1720269744031,-500.0,0.00041095,90]
[331358465,1720269744086,-500.0,0.00041095,90]
[331358466,1720269745155,-500.0,0.00041095,90]
[331358467,1720269745211,-500.0,0.00041095,90]
[331358468,1720269745267,-500.0,0.00041095,90]
[331358469,1720269745323,-500.0,0.00041095,90]
[331358470,1720269745379,-500.0,0.00041095,90]
[331358471,1720269745433,-500.0,0.00041095,90]
[331358472,1720269745487,-500.0,0.00041095,90]
[331358473,1720269745541,-500.0,0.00041095,90]
[331358474,1720269745593,-500.0,0.00041095,90]
[331358475,1720269745645,-500.0,0.00041095,90]
[331358476,1720269745696,-500.0,0.00041095,90]
[331358477,1720269745746,-500.0,0.00041095,90]
[331358478,1720269745794,-500.0,0.00041095,90]
[331358479,1720269745843,-500.0,0.00041095,90]
[331358480,1720269745892,-500.0,0.00041095,90]
[331358481,1720269745942,-500.0,0.00041095,90]
[331358482,1720269745994,-500.0,0.00041095,90]
[331358483,1720269746053,-584.38018615,0.00041095,90]
[331358484,1720269746107,-1000.0,0.00041146,30]
[331358485,1720269746159,-1321.03647936,0.00041205,30]
[331358486,1720269746213,-1000.0,0.00041295,30]
[331358487,1720269746264,-154.44159687,0.00041305,30]
[331358488,1720269746319,-151.0,0.00041342,120]
[331358489,1720269746372,-155.93157011,0.00041354,30]
[331358490,1720269746424,-2415.25548183,0.00041391,30]